Cogmind - Beta 13 @@@ ROGUE MODE // 2024.03.19 @ 17:26:57 // AFD2020/Player2 Player: Michael Result: Core destroyed Performance ------------- Evolutions (0) 0 Regions Visited (2) 400 Robots Destroyed (8) 40 Value Destroyed (198) 198 Prototype IDs (0) 0 Alien Tech Used (0) 0 Bonus (173) 173 TOTAL SCORE: 811 Bonus ------- Follower Combat Kills 209 Friendly Fire -36 Cogmind --------- Core Integrity 0/250 Matter 270/300 Energy 250/250 System Corruption 1% Temperature Cool (0) Movement Walking (120) Location -10/Mines Parts ------- > --- POWER (1) -------- Ion Engine > --- PROPULSION (2) --- Aluminum Leg Aluminum Leg > --- UTILITY (2) ------ Medium Storage Unit Terrain Scanner > --- WEAPON (2) ------- Assault Rifle Assault Rifle > --- INVENTORY (10) --- Light Treads Aluminum Leg Wheel Medium Storage Unit Signal Interpreter Terrain Scanner Assault Rifle Assault Rifle Assault Rifle Assault Rifle Peak State ------------ > --- POWER ------------ Ion Engine > --- PROPULSION ------- Aluminum Leg Aluminum Leg > --- UTILITY ---------- Medium Storage Unit Terrain Scanner > --- WEAPON ----------- Assault Rifle Assault Rifle > --- INVENTORY -------- Light Treads Aluminum Leg Aluminum Leg Aluminum Leg Wheel Medium Storage Unit Assault Rifle Assault Rifle Assault Rifle Assault Rifle [Rating: 8] Favorites ----------- Power Ion Engine Engine Ion Engine Propulsion Aluminum Leg Leg Aluminum Leg Utility Terrain Scanner Device Terrain Scanner Storage Medium Storage Unit Weapon Assault Rifle Ballistic Gun Assault Rifle Build | -11 -10 -10 ------- Run | Yrd Mat Min Slots Evolved . | . . . Power . | . . . Propulsion . | . . . Utility . | . . . Weapon . | . . . Parts Attached 11 | 5 5 1 Power 1 | . 1 . Engine 1 | . 1 . Core . | . . . Reactor . | . . . Propulsion 4 | 2 2 . Treads . | . . . Leg 4 | 2 2 . Wheel . | . . . Hover . | . . . Flight . | . . . Utility 3 | 1 2 . Device 1 | . 1 . Storage 2 | 1 1 . Processor . | . . . Hackware . | . . . Protection . | . . . Artifact . | . . . Weapon 3 | 2 . 1 Energy Gun . | . . . Energy Cannon . | . . . Ballistic Gun 3 | 2 . 1 Ballistic Cannon . | . . . Launcher . | . . . Special Weapon . | . . . Impact Weapon . | . . . Slashing Weapon . | . . . Piercing Weapon . | . . . Special Melee Weapon . | . . . Unidentified Prototypes . | . . . Parts Lost . | . . . Power . | . . . Propulsion . | . . . Utility . | . . . Weapon . | . . . Highest Loss Streak . | . . . To Critical Strikes . | . . . Average Slot Usage (%) 95 | . 94 100 Engine 11 | . 10 14 Leg 28 | . 28 28 Device 12 | . 12 14 Storage 14 | . 14 14 Ballistic Gun 28 | . 28 28 Naked Turns . | . . . Heaviest Build 20 | 9 20 20 Greatest Support 20 | 20 20 20 Greatest Overweight (x) . | . . . Average Overweight (x) . | . . . Largest Inventory Capacity 10 | 8 10 10 Average Capacity 9 | 6 9 10 Most Carried 10 | 3 10 10 Average Carried 7 | 1 7 9 Final Capacity 19 | 8 10 19 Final Carried 17 | 3 10 17 Class Distribution -------------------- 59% | Scavenger-Mutant 40% | Mutant Dominant Class ---------------- Scavenger-Mutant | -10/Materials Scavenger-Mutant | -10/Mines Resources | -11 -10 -10 ----------- Run | Yrd Mat Min Matter Collected 465 | 250 195 20 Remotely . | . . . Salvage Created 281 | . 281 . Parts 21 | . 21 . Haulers Intercepted 1 | . 1 . Recyclers Shooed 1 | . 1 . Parts Field Recycled . | . . . Retrieved Matter . | . . . Parts Self-Destructed . | . . . Prevented . | . . . Kills | -11 -10 -10 ------- Run | Yrd Mat Min Combat Hostiles Destroyed 5 | . 5 . Guns 5 | . 5 . Classes Destroyed 5 | . 5 . Worker 1 | . 1 . Hauler 1 | . 1 . Watcher 1 | . 1 . Swarmer 1 | . 1 . Grunt 4 | . 4 . Best Kill Streak 4 | . 4 . Combat Bots Only 3 | . 3 . Max Kills in Single Turn 2 | . 2 . Gunslinging 1 | . 1 . Exploded . | . . . Melee . | . . . Uniques/NPCs Destroyed . | . . . Combat | -11 -10 -10 -------- Run | Yrd Mat Min Hostile Shots Fired 41 | . 36 5 Missed 12 | . 9 3 Damage Taken 322 | . 283 39 Core 111 | . 88 23 Absorbed by Shields . | . . . Core Remaining (%) 100 | 100 . . Volleys Fired 27 | . 22 5 Largest 2 | . 2 2 Hottest 40 | . 40 40 Shots Fired 55 | . 45 10 Gun 55 | . 45 10 Cannon . | . . . Launcher . | . . . Special . | . . . Kinetic 55 | . 45 10 Thermal . | . . . Explosive . | . . . Electromagnetic . | . . . Robot Hit Streak 6 | . 3 6 Robot Miss Streak 4 | . 4 3 Penetration Max . | . . . Secondary Targets 2 | . 2 . Max Gunslinging Chain 1 | . 1 . Shots Hit Robots 28 | . 21 7 Core Hits 15 | . 14 1 Critical Kills . | . . . Critical Parts Destroyed . | . . . Critical Strikes . | . . . Melee Attacks . | . . . Impact . | . . . Slashing . | . . . Piercing . | . . . Sneak Attacks . | . . . Combat Hostiles . | . . . Follow-up Attacks . | . . . Damage Inflicted 409 | . 313 96 Guns 409 | . 313 96 Cannons . | . . . Explosions . | . . . Melee . | . . . Ramming . | . . . Kinetic 409 | . 313 96 Thermal . | . . . Explosive . | . . . Electromagnetic . | . . . Impact . | . . . Slashing . | . . . Piercing . | . . . Highest Corruption 1 | . 1 1 Average Corruption 1 | . 1 1 Corruption Purged . | . . . Corruption Blocked . | . . . Effects 5 | . 3 2 Message Errors 2 | . 1 1 Matter Fused 2 | . 1 1 Misfires 1 | . 1 . Overload Shots . | . . . Overflow Damage . | . . . Projectiles . | . . . Explosions . | . . . Melee . | . . . Knockbacks . | . . . Impact . | . . . Kinetic . | . . . Secondary . | . . . Self-Inflicted Damage . | . . . Shots . | . . . Rammed . | . . . Targets Rammed . | . . . Kicked . | . . . Crushed . | . . . Highest Temperature 8 | . 2 8 Average Temperature 3 | . 2 4 Received Heat Transfer 86 | . 70 16 Siege Activations . | . . . Robots Corrupted . | . . . Combat Hostiles . | . . . Parts Fried . | . . . Impact Corruptions . | . . . Robots Melted . | . . . Combat Hostiles . | . . . Parts Melted . | . . . Heat Transferred . | . . . Parts Sabotaged . | . . . Parts Stolen . | . . . Parts Stripped . | . . . Power Chain Reactions . | . . . Alert | -11 -10 -10 ------- Run | Yrd Mat Min Peak Influence 412 | . 412 155 Initial 93 | . . 93 Average 171 | . 191 154 Maximum Alert Level 2 | . 2 . Low Security (%) 52 | 100 32 100 Level 1 39 | . 55 . Level 2 7 | . 11 . Level 3 . | . . . Level 4 . | . . . Level 5 . | . . . High Security . | . . . Max Security . | . . . Squads Dispatched 1 | . 1 . Investigation . | . . . Extermination . | . . . Reinforcement 1 | . 1 . Assault . | . . . Garrison . | . . . Intercept . | . . . Searches Triggered . | . . . Construction Impeded . | . . . Haulers Reinforced . | . . . Active Scanning Responses . | . . . Cargo Convoy Interrupts . | . . . Stealth | -11 -10 -10 --------- Run | Yrd Mat Min Distress Signals . | . . . Communications Jammed . | . . . Distress Signals . | . . . Times Spotted 33 | . 17 16 Peak Tracking Total 20 | . 6 20 Tactical Retreats . | . . . Traps | -11 -10 -10 ------- Run | Yrd Mat Min Traps Triggered 1 | . 1 . Indirectly . | . . . Trap Hack Attempts . | . . . Triggered . | . . . Disarmed . | . . . Reprogrammed . | . . . Reused . | . . . Traps Extracted . | . . . Installed . | . . . Triggered . | . . . Machines | -11 -10 -10 ---------- Run | Yrd Mat Min Machines Disabled 2 | . 2 . Max in Single Turn 1 | . 1 . Machines Repaired . | . . . Machines Dismantled . | . . . Machines Sabotaged . | . . . Overloaded Fab Kills . | . . . Hacking | -11 -10 -10 --------- Run | Yrd Mat Min Machines Accessed 7 | . 6 1 Terminals 4 | . 4 . Fabricators . | . . . Repair Stations . | . . . Recycling Units 2 | . 2 . Scanalyzers . | . . . Garrison Access . | . . . Total Hacks 16 | . 15 1 Successful 8 | . 7 1 Failed 8 | . 8 . Catastrophic 3 | . 3 . Database Lockouts . | . . . Manual . | . . . Terminals 11 | . 11 . Fabricators . | . . . Repair Stations . | . . . Recycling Units 4 | . 4 . Scanalyzers . | . . . Garrison Access . | . . . Terminal Hacks 6 | . 5 1 Open Door 1 | . . 1 Branch Access Points 1 | . 1 . Emergency Access Points 1 | . 1 . Locate Traps 1 | . 1 . Hauler Manifests 1 | . 1 . Zone Layout 1 | . 1 . Fabricator Hacks . | . . . Repair Station Hacks . | . . . Recycling Unit Hacks 2 | . 2 . Retrieve Components 2 | . 2 . Scanalyzer . | . . . Garrison Access Hacks . | . . . Unauthorized Hacks . | . . . Terminals . | . . . Fabricators . | . . . Repair Stations . | . . . Recycling Units . | . . . Scanalyzers . | . . . Garrison Access . | . . . Data Cores Recovered . | . . . Used . | . . . Hacking Detections 5 | . 5 . Full Trace Events . | . . . Feedback Events . | . . . Feedback Blocked . | . . . Robot Schematics Acquired . | . . . Robots Built . | . . . Authchips . | . . . Time . | . . . Total Robot Build Rating . | . . . Part Schematics Acquired . | . . . Parts Built . | . . . Authchips . | . . . Time . | . . . Total Part Build Rating . | . . . Parts Repaired . | . . . Time . | . . . Parts Recycled . | . . . Recycled Matter . | . . . Retrieved Matter . | . . . Retrieved Components 11 | . 11 . Parts Scanalyzed . | . . . Part Schematics Acquired . | . . . Parts Damaged . | . . . Bothacking | -11 -10 -10 ------------ Run | Yrd Mat Min Used RIF Installer . | . . . Robots Hacked . | . . . Non-combat . | . . . Combat . | . . . Robot Hacks Applied . | . . . Relay Couplers Released . | . . . Fabnet Peak Effective % . | . . . Robots Rewired . | . . . Allies Hacked . | . . . Hacks Repelled . | . . . Allies | -11 -10 -10 -------- Run | Yrd Mat Min Total Allies 1 | . 1 . Largest Group 1 | . 1 1 Highest-Rated Group 65 | . 64 65 Highest-Rated Ally 65 | . 64 65 Total Orders . | . . . Ally Attacks 30 | . 26 4 Total Damage 535 | . 398 137 Kills 10 | . 7 3 Allies Corrupted . | . . . Allies Melted . | . . . Intel | -11 -10 -10 ------- Run | Yrd Mat Min Robot Analysis Total . | . . . Derelict Logs Recovered . | . . . Drone Launches . | . . . Drone Recoveries . | . . . Exploration | -11 -10 -10 ------------- Run | Yrd Mat Min Turns Passed 971 | 56 684 231 Spaces Moved 702 | 40 500 162 Core 9 | 9 . . Treads . | . . . Legs 693 | 31 500 162 Wheels . | . . . Hover . | . . . Flight . | . . . Fastest Speed 50 | 50 120 120 Average Speed 119 | 104 120 120 Slowest Speed 120 | 120 120 120 Overloaded Moves . | . . . Propulsion Burnouts . | . . . Robots Hopped . | . . . Cave-ins Triggered . | . . . Exploration Rate (%) 53 | 3 95 62 Regions Visited 2 Branch Regions 1 Pre-discovered Areas . | . . . Known Exits Taken 1 | . 1 . Unknown Exits Taken 1 | 1 . . Scrap Searched 1 | . . 1 Spaces Dug . | . . . Terrain Destroyed . | . . . Melee . | . . . Projectile . | . . . AOE . | . . . Terrain Rammed . | . . . Walls Destroyed . | . . . Machines Disabled . | . . . Actions | -11 -10 -10 --------- Run | Yrd Mat Min Total 780 | 52 539 189 Wait 27 | 5 3 19 Move 700 | 39 499 162 Hop . | . . . Pick Up 11 | 3 7 1 Fast Attach 7 | 5 2 . Attach . | . . . Detach . | . . . Swap 4 | . 3 1 Drop 4 | . 3 1 Fire 27 | . 22 5 Melee . | . . . Ram . | . . . Kick . | . . . Crush . | . . . Escape Stasis . | . . . Rewire . | . . . Trap . | . . . Miscellaneous . | . . . Route ------- -11/Scrapyard -10/Materials (discovered 4 exits: [*Mat x3] / *Min) -10/Mines (discovered 1 exit: [*Mat]) History --------- Turn | Location | Event 5 | -11/Scrapyard | Discovered new exit (range 15) 57 | -11/Scrapyard | Entered Materials 85 | -10/Materials | Identified exit to Mines 205 | -10/Materials | Discovered new exit (range 19) 301 | -10/Materials | Build established: Mutant 504 | -10/Materials | Discovered new exit (range 7) 592 | -10/Materials | Discovered new exit (range 16) 697 | -10/Materials | Build established: Scavenger-Mutant 741 | -10/Materials | Entered Mines 873 | -10/Mines | Discovered new exit (range 6) 908 | -10/Mines | Met a Derelict who couldn't figure out how to use a Trap Extractor 909 | -10/Mines | Core integrity fell below 50% 958 | -10/Mines | Assembled infested the area 963 | -10/Mines | Assisted by a Guerilla fighting off Assembled 972 | -10/Mines | Core integrity fell below 20% 972 | -10/Mines | Core destroyed Last Messages --------------- 00908_ A bubble of electromagnetic force engulfs the area. 00908_ SHOP.Sys disabled. 00908_ Machine disabled. 00908_ Chain reaction triggered in Corrupted Lgt. Nuclear Core. 00908_ Machine disabled. 00912_ Player 2 triggered Explosive Trap. 00912_ An explosion rips through the floor. 00913_ The unstable cave ceiling collapses. 00915_ Player 2 acquires Hrd. Medium Armor Plating. 00919_ Player 2 acquires Corrupted Cryofiber Web. 00926_ U-05 Engineer lays Concrete. 00928_ K-01 Serf collects debris. 00928_ U-05 Engineer lays Concrete. 00931_ K-01 Serf collects debris. 00958_ ALERT: Infestation in the mines, dispatching Demolisher response squad. Map ----- +----------------------------------------------------+ | | | | | | | ?????????????????????????????????????? | | ?????????????????????????????????????? | | ?????????????????????????????????????? | | ?????????????????????????????????????? | | ?????????????????????????????????????? | | ?????????????????????????????????????? | | ?????????????????????????????????????? | | ?????????????????????????????????????? | | ?????????????????????????????????????? | | ??????????????? ???????????????????? | | ??????????????? ???????????????????? | | ??????????????? ???????????????????? | | ??????????????? ???????????????????? | | ??????????????? ???????????????????? | | ??????????????? ???????????????????? | | ???????????????? ?#?????????????????? | | ???????????????? #??????????????????? | | ??????#????????? #??????????????????? | | ??????????#????# ##?????????????????? | | #?############## ??????????????????? | | ??# #? ??? ??????????????? | | ??? #?# #??????????????????? | | ?????"" """ @#?# #######????????????? | | ?????"" """ aa#?# #?#????#?????? | | ????""" """ a### ##### #????????????? | | ??# #???# #??????????? ? | | ??# """ """ #####??## #????????????? | | ????""" """ #??????## #???#????????? | | ?????"" """ #???????# #????????????? | | ????? #???????# #????????????? | | ??????#########??#????# #???????? ???? | | ????????????########### ###??????????? | | ????????????# ##?????????? | | ????????????# #??????????? | | ??????##????# #??????????? | | ????### #??# #??#???????? | | ????# ## #??????????? | | ?????# # #??????????? | | ????## !# #??????????? | | ????# = #??????????? | | ???##" !! ##?#???????? | | ????## !! # #??????????? | | ?????## ?# #??????????? | | ??????##??### ##?????????? | | ????????????####### ######??????????? | | ??????????????????# #???????????????? | | ????????????#?????# #???????????????? | +----------------------------------------------------+ Best States ------------- Heat Dissipation 25 Energy Generation 10 Energy Capacity 250 Matter Stores 300 Matter Capacity 300 Sight Range 16 Terrain Scan Range 14 Terrain Scan Density 10 Evasion (%) 55 Item Schematics ----------------- None Robot Schematics ------------------ None Fabricated ------------ Nothing Alien Tech Used ----------------- None Achievements -------------- None Challenges ------------ None Player 2 | -11 -10 -10 ---------- Run | Yrd Mat Min Slots Evolved . | . . . Power . | . . . Propulsion . | . . . Utility . | . . . Weapon . | . . . Parts Attached 17 | . 17 . Parts Lost 2 | . 1 1 Damage Taken 521 | . 251 270 Core 156 | . 23 133 Player 2/Cogmind (%) 58 | . 20 85 Absorbed by Shields . | . . . Damage Inflicted 535 | . 398 137 Player 2/Cogmind (%) 56 | . 55 58 Combat Hostiles Destroyed 10 | . 7 3 Player 2/Cogmind (%) 66 | . 58 100 Game ------ Seed HeavyLayeredVibroblade Manual? 0 Play Time 00:12:45 Cumulative 892.3 hours Start 2024.03.19 @ 17:16:27 End 2024.03.19 @ 17:26:57 Sessions 1 Manual Loads 0 Difficulty Rogue Special Mode AFD2020/Player2 Game No. 279 Rogue 243 Adventurer 36 Explorer 0 Win Type - Total 19 Types 19/0/0/0/0/0/0/0/0 Lore% 55 Gallery% 63 Achievement% 50 Wizard Run 0 Options --------- Layout 1 ASCII 0 Keyboard 1 Movement Vi Keybinds 0 Fullscreen 1 Font 24/Tallcaps Map View 50x35 Zoom Use 0% Tactical HUD 1 Map Filters NONE Filters NONE Steam 0 RUN: 330fb3f6-66b9-4c32-8506-6eb1c612ce24